bitfinex-derivatives/quotes_SOLF0:USTF0_20230402
["timestamp","ask_amount","ask_price","bid_price","bid_amount"]
[1680464890924,36.79,20.361,20.35,46.4159]
[1680464892522,36.41,20.361,20.35,46.4159]
[1680464895224,0.06777271,20.364,20.351,36.62]
[1680464895425,36.32,20.362,20.35,46.4159]
[1680464896325,36.32,20.359,20.35,46.4159]
[1680464896624,0.06777271,20.364,20.349,14.83284474]
[1680464896625,36.35,20.356,20.349,14.83284474]
[1680464896822,36.35,20.356,20.348,0.06705245]
[1680464897719,36.35,20.356,20.348,15.08109334]
[1680464897921,36.35,20.356,20.348,0.06705245]
[1680464901729,84.0435,20.359,20.348,0.06705245]
[1680464901930,3.03007597,20.358,20.348,0.06705245]
[1680464903733,0.06874202,20.36,20.348,36.44705245]
[1680464904137,0.06874202,20.36,20.348,182.64705245]
[1680464904639,0.06874202,20.36,20.348,36.44705245]
[1680464907137,0.06874202,20.36,20.351,36.62]
[1680464907635,36.41,20.358,20.348,0.06705245]
[1680464908930,36.68874202,20.36,20.348,0.06705245]
[1680464912539,36.32,20.357,20.348,0.06705245]
[1680464918239,36.32,20.352,20.343,49.0678]
[1680464918444,36.62,20.348,20.343,49.0678]
[1680464918934,5.0,20.351,20.343,49.0678]
[1680464919336,36.47433173,20.354,20.343,49.0678]
[1680464921239,36.47433173,20.354,20.34,36.5800274]
[1680464921444,36.62,20.351,20.34,0.0600274]
[1680464922144,36.62,20.349,20.34,0.0600274]
[1680464923845,36.61,20.349,20.34,0.0600274]
[1680464926839,46.663,20.353,20.34,0.0600274]
[1680464926840,36.61,20.352,20.34,0.0600274]
[1680464930552,36.66,20.349,20.34,0.0600274]
[1680464931853,36.35,20.345,20.34,0.0600274]
[1680464932151,5.0,20.344,20.335,0.06867984]
[1680464932854,52.9026,20.344,20.335,0.06867984]
[1680464933052,47.9026,20.344,20.335,0.06867984]
[1680464935850,36.66,20.349,20.335,0.06867984]
[1680464936156,55.40316214,20.348,20.335,0.06867984]
[1680464936455,45.6755,20.348,20.335,0.06867984]
[1680464936956,9.72766178,20.347,20.335,0.06867984]
[1680464938957,9.72766178,20.347,20.337,36.46]
[1680464939450,9.72766178,20.348,20.337,36.46]
[1680464939658,9.72766178,20.347,20.337,36.46]
[1680464939856,9.72766178,20.346,20.337,36.46]
[1680464940057,9.72766178,20.345,20.337,36.46]
[1680464940258,9.72766178,20.345,20.336,47.041]
[1680464940259,9.72766178,20.344,20.336,47.041]
[1680464940460,5.0,20.348,20.336,47.041]
[1680464940658,9.72765332,20.347,20.336,47.041]
[1680464940959,9.72765332,20.346,20.336,47.041]
[1680464941258,9.72765332,20.345,20.336,47.041]
[1680464941452,9.72765332,20.348,20.336,47.041]
[1680464941655,9.72765332,20.347,20.338,36.66]
[1680464941856,9.79631759,20.35,20.338,36.66]
[1680464942056,9.72765332,20.349,20.338,36.66]
[1680464942256,9.72765332,20.348,20.338,36.66]
[1680464942458,0.06866427,20.35,20.338,36.66]
[1680464942853,0.06866427,20.35,20.341,36.55]
[1680464943060,9.79631759,20.35,20.341,36.55]
[1680464943257,9.72765332,20.349,20.341,36.55]
[1680464943462,0.06866427,20.35,20.341,36.55]
[1680464955272,0.06866427,20.35,20.34,14.489055]
[1680464955468,0.06866427,20.35,20.339,36.66]
[1680464957571,36.66,20.349,20.336,47.041]
[1680464957766,9.73107409,20.348,20.336,47.041]
[1680464958164,36.35,20.346,20.336,47.041]
[1680464958365,9.73107409,20.345,20.336,47.041]
[1680464966171,9.73107409,20.344,20.336,47.041]
[1680464966372,0.06866427,20.35,20.338,36.6]
[1680464966566,9.80100629,20.35,20.338,36.6]
[1680464966871,9.80100629,20.35,20.341,36.6]
[1680464967070,0.06866427,20.35,20.341,36.6]
[1680464972070,0.06866427,20.35,20.342,5.0]
[1680464973165,0.06866427,20.35,20.341,36.6]
[1680464973571,0.06866427,20.35,20.336,193.241]
[1680464973572,0.06866427,20.35,20.339,36.68]
[1680464976071,0.06866427,20.35,20.342,36.68]
[1680464977273,0.06866427,20.35,20.343,146.2]
[1680464977478,0.06866427,20.35,20.342,36.68]
[1680464981784,0.06866427,20.35,20.345,36.32]
[1680464981979,0.06101015,20.355,20.345,36.32]
[1680464982282,141.81112247,20.36,20.345,36.32]
[1680464982283,0.06154821,20.357,20.345,36.32]
[1680464982678,0.06154821,20.357,20.346,46.7731]
[1680464984380,0.06154821,20.357,20.349,36.63]
[1680464984879,9.79389023,20.357,20.349,36.63]
[1680464985076,9.73234202,20.356,20.349,36.63]
[1680464985282,0.06154821,20.357,20.349,36.63]
[1680464992190,0.06154821,20.357,20.351,24.26]
[1680464992387,9.7955805,20.361,20.354,24.41]
[1680464992592,9.73234202,20.36,20.354,24.41]
[1680464992789,9.73234202,20.359,20.354,24.41]
[1680464993091,9.73234202,20.358,20.354,24.41]
[1680464993291,9.73234202,20.357,20.354,24.41]
[1680464993493,9.73234202,20.356,20.354,24.69]
[1680464993693,24.75540422,20.365,20.354,24.69]
[1680464993889,9.73443088,20.364,20.354,24.69]
[1680464998094,9.73443088,20.364,20.357,24.69]
[1680464998294,9.73443088,20.363,20.357,24.69]
[1680464998496,9.73443088,20.362,20.358,46.6046]
[1680464998795,9.73443088,20.361,20.358,46.6046]
[1680464998995,9.73443088,20.36,20.358,46.6046]
[1680464999194,0.06540422,20.365,20.357,24.69]
[1680464999398,24.69,20.373,20.362,24.69]
[1680465000498,0.06061369,20.375,20.367,24.69]
[1680465000689,24.69,20.377,20.367,24.69]
[1680465001897,0.06032715,20.378,20.369,24.69]
[1680465004598,0.06032715,20.378,20.37,46.4697]
[1680465004999,24.69,20.377,20.37,46.4697]
[1680465006696,24.69,20.374,20.364,0.0607003]
[1680465006894,0.06032715,20.378,20.364,0.0607003]
[1680465006895,24.69,20.371,20.364,0.0607003]
[1680465007100,36.69,20.372,20.364,0.0607003]
[1680465009896,36.88,20.376,20.364,0.0607003]
[1680465011004,37.01,20.372,20.364,0.0607003]
[1680465013809,36.88,20.369,20.364,0.0607003]
[1680465014004,36.88,20.369,20.359,0.06240409]
[1680465017908,36.94,20.365,20.359,0.06240409]
[1680465018106,36.88,20.362,20.355,0.07127991]
[1680465020107,37.01,20.358,20.355,0.07127991]
[1680465020407,37.01,20.358,20.349,0.06657596]
[1680465020710,37.01,20.358,20.346,0.07116954]
[1680465022617,36.97374507,20.361,20.348,36.87]
[1680465024016,37.01,20.359,20.346,0.07116954]
[1680465024419,36.63,20.359,20.346,0.07116954]
[1680465024916,49.3236,20.358,20.346,0.07116954]
[1680465025516,36.63,20.356,20.346,0.07116954]
[1680465025712,36.6,20.352,20.346,0.07116954]
[1680465025911,36.6,20.352,20.342,0.06847712]
[1680465026116,36.6,20.352,20.34,0.0636534]
[1680465027019,36.37,20.349,20.34,0.0636534]
[1680465032121,36.6,20.351,20.34,0.0636534]
[1680465039623,36.34,20.348,20.34,0.0636534]
[1680465040824,36.37,20.351,20.34,0.0636534]
[1680465042020,36.63,20.349,20.34,0.0636534]
[1680465042223,0.14978579,20.34,20.332,51.11433657]
[1680465042523,0.14978579,20.34,20.332,36.58]
[1680465044325,0.14978579,20.34,20.329,0.0666496]
[1680465052025,0.14978579,20.34,20.33,36.58]
[1680465054426,0.14978579,20.34,20.333,36.45]
[1680465054630,0.0662018,20.343,20.336,36.59]
[1680465054929,0.0662018,20.343,20.339,36.63]
[1680465055132,0.06856737,20.348,20.339,36.63]
[1680465055328,0.06856737,20.348,20.339,36.46]
[1680465063137,0.06856737,20.348,20.342,36.53]
[1680465063334,0.06984722,20.352,20.342,36.53]
[1680465063537,0.06984722,20.352,20.345,36.46]
[1680465068036,0.06984722,20.352,20.344,49.0156]
[1680465069041,0.06984722,20.352,20.342,36.53]
[1680465077343,0.06984722,20.352,20.342,24.43]
[1680465077740,24.35,20.351,20.34,24.46719952]
[1680465079342,124.43,20.341,20.328,24.43]
[1680465079540,24.35,20.334,20.322,24.33]
[1680465079738,24.36,20.331,20.32,24.43]
[1680465080447,24.35,20.328,20.318,44.76200612]
[1680465082148,36.62,20.329,20.318,44.76200612]
[1680465085247,36.74,20.326,20.318,44.76200612]
[1680465086347,36.56,20.326,20.318,44.76200612]
[1680465087651,36.4,20.33,20.318,44.76200612]
[1680465088552,36.82056627,20.333,20.319,36.72]
[1680465092053,0.07056627,20.333,20.321,36.72]
[1680465093054,46.0613,20.34,20.328,36.47]
[1680465097158,36.4,20.339,20.327,0.06403577]
[1680465098060,36.71,20.336,20.327,0.06403577]
[1680465100766,5.0,20.339,20.327,0.06403577]
[1680465100767,36.71,20.333,20.327,0.06403577]
[1680465101065,36.71,20.333,20.323,0.06354421]
[1680465101266,36.71,20.333,20.321,0.06160629]
[1680465112073,36.74,20.331,20.321,0.06160629]
[1680465117182,36.73,20.331,20.321,0.06160629]
[1680465121690,0.07076625,20.335,20.324,36.73]
[1680465121987,0.07076625,20.335,20.33,36.47]
[1680465122191,46.13098409,20.34,20.33,36.47]
[1680465136800,46.13098409,20.34,20.333,36.38]
[1680465137002,0.06968409,20.34,20.333,36.38]
[1680465137194,0.06968409,20.34,20.336,36.63]
[1680465137398,0.06922549,20.345,20.336,36.63]
[1680465137601,0.0631468,20.348,20.336,36.63]
[1680465141204,0.0631468,20.348,20.34,36.73]
[1680465142103,0.0631468,20.348,20.342,24.43]
[1680465142300,0.06535128,20.352,20.342,24.43]
[1680465144106,0.06535128,20.352,20.345,24.22]
[1680465145706,0.06535128,20.352,20.342,24.43]
[1680465146906,24.43,20.349,20.338,24.49511466]
[1680465148501,24.44,20.349,20.338,24.50511466]
[1680465154308,0.06535128,20.352,20.342,24.44]
[1680465154511,0.06535128,20.352,20.346,24.31]
[1680465154815,0.06110029,20.356,20.346,24.31]
[1680465157522,45.1062,20.365,20.355,24.34]
[1680465157916,45.1062,20.365,20.359,24.43]
[1680465160619,0.0605054,20.369,20.359,24.43]
[1680465162524,0.0605054,20.369,20.362,24.31]
[1680465166030,0.0605054,20.369,20.359,24.44]
[1680465166330,0.0605054,20.369,20.362,24.44]
[1680465168627,24.44,20.376,20.366,24.44]
[1680465168925,24.44,20.38,20.369,24.31]
[1680465169536,24.33,20.385,20.375,24.31]
[1680465172032,24.44,20.377,20.364,24.44]
[1680465172233,36.89,20.377,20.363,37.0]
[1680465173034,36.95525067,20.377,20.363,37.06711312]
[1680465176631,37.0,20.373,20.363,0.06711312]
[1680465178037,37.06525067,20.377,20.363,37.06711312]
[1680465180030,37.0,20.374,20.363,0.06711312]
[1680465180237,36.77,20.371,20.363,0.06711312]
[1680465184440,37.0,20.368,20.363,0.06711312]
[1680465184735,37.0,20.368,20.358,49.20339591]
[1680465186337,36.75,20.371,20.358,49.20339591]
[1680465187935,0.06209287,20.373,20.363,36.71]
[1680465189736,0.06209287,20.373,20.367,36.71]
[1680465190039,0.06504338,20.377,20.367,36.71]
[1680465190334,5.0,20.38,20.367,36.71]
[1680465190335,0.06061568,20.379,20.367,36.71]
[1680465192240,36.77,20.377,20.363,37.06971283]
[1680465192632,36.77,20.373,20.363,0.06971283]
[1680465195239,37.0,20.376,20.363,0.06971283]
[1680465195645,0.06061568,20.379,20.366,37.0]
[1680465195846,0.06061568,20.379,20.371,37.0]
[1680465204153,0.06061568,20.379,20.375,36.71]
[1680465204354,0.06257827,20.384,20.375,36.71]
[1680465204550,5.06777616,20.387,20.375,36.71]
[1680465204749,0.06777616,20.387,20.375,36.71]
[1680465204950,0.06777616,20.387,20.376,46.1174]
[1680465209757,36.96,20.383,20.372,0.0712035]
[1680465216160,36.75,20.385,20.372,0.0712035]
[1680465225162,36.75,20.385,20.373,36.96]
[1680465226862,36.75,20.385,20.374,5.0]
[1680465227864,0.06777616,20.387,20.377,36.96]
[1680465230970,0.06777616,20.387,20.378,5.0]
[1680465231170,0.06777616,20.387,20.378,51.3454]
[1680465231370,0.06777616,20.387,20.378,46.3454]
[1680465233074,0.06777616,20.387,20.38,36.96]
[1680465233575,0.06777616,20.387,20.378,46.3454]
[1680465233768,37.02777616,20.387,20.378,46.3454]
[1680465234074,37.02777616,20.387,20.376,0.06475525]
[1680465234272,49.1,20.386,20.376,0.06475525]
[1680465234868,36.73,20.383,20.376,0.06475525]
[1680465236272,85.85,20.386,20.376,0.06475525]
[1680465238275,85.93,20.386,20.376,0.06475525]
[1680465242277,73.74,20.386,20.376,0.06475525]
[1680465245184,24.64,20.382,20.376,0.06475525]
[1680465245382,5.0,20.381,20.372,0.06931722]
[1680465246484,24.64,20.382,20.372,0.06931722]
[1680465247083,24.64,20.385,20.374,24.64]
[1680465255990,24.64,20.383,20.372,24.70931722]
[1680465256791,73.74,20.386,20.376,24.64]
[1680465257592,24.6,20.384,20.373,24.64]
[1680465258891,24.64,20.38,20.372,0.06931722]
[1680465261992,24.6,20.382,20.372,0.06931722]
[1680465264804,5.0,20.381,20.372,0.06931722]
[1680465266906,24.6,20.379,20.372,0.06931722]
[1680465268904,24.66,20.379,20.372,0.06931722]
[1680465269306,0.06726575,20.383,20.375,24.66]
[1680465269507,0.06726575,20.383,20.378,24.66]
[1680465269704,24.66756611,20.388,20.378,24.66]
[1680465272109,24.66756611,20.388,20.379,24.66]
[1680465272110,0.06756611,20.388,20.379,24.66]
[1680465273110,24.68756611,20.388,20.377,24.66]
[1680465275513,0.06756611,20.388,20.379,24.66]
[1680465276010,0.06756611,20.388,20.383,24.66]
[1680465276201,84.49832098,20.391,20.383,24.66]
[1680465278212,109.11832098,20.391,20.38,24.7302712]
[1680465278416,24.62,20.391,20.38,24.7302712]
[1680465280019,24.62,20.388,20.38,0.0702712]
[1680465280215,24.66,20.384,20.38,0.0702712]
[1680465280513,24.66,20.384,20.375,0.06684147]
[1680465282211,36.68,20.386,20.375,0.06684147]
[1680465291623,36.68,20.383,20.375,0.06684147]
[1680465292014,36.97,20.385,20.375,0.06684147]
[1680465292220,47.0447,20.384,20.375,0.06684147]
[1680465295924,47.0447,20.384,20.375,36.85684147]
[1680465296827,47.0447,20.384,20.378,36.97]
[1680465297125,0.06375319,20.387,20.378,36.97]
[1680465299829,0.06375319,20.387,20.378,36.95]
[1680465306127,37.01375319,20.387,20.375,0.06684147]
[1680465309828,183.21375319,20.387,20.375,0.06684147]
[1680465312039,36.95,20.381,20.375,0.06684147]
[1680465312332,183.15,20.381,20.371,0.06875654]
[1680465312532,183.15,20.381,20.369,0.06458482]
[1680465313030,36.95,20.377,20.369,0.06458482]
[1680465313636,183.15,20.377,20.369,0.06458482]
[1680465315035,36.95,20.377,20.369,0.06458482]
[1680465319238,183.15,20.377,20.369,0.06458482]
[1680465319741,36.95,20.377,20.369,0.06458482]
[1680465321937,183.15,20.377,20.369,0.06458482]
[1680465324444,36.95,20.377,20.369,0.06458482]
[1680465324837,183.15,20.377,20.369,0.06458482]
[1680465325038,36.95,20.377,20.369,0.06458482]
[1680465325546,183.15,20.377,20.369,0.06458482]
[1680465327852,36.95,20.377,20.369,0.06458482]
[1680465328853,183.15,20.377,20.369,0.06458482]
[1680465330651,36.79,20.377,20.369,0.06458482]
[1680465331356,51.66638533,20.377,20.369,0.06458482]
[1680465331757,45.7995,20.38,20.371,37.01]
[1680465332649,60.56625156,20.38,20.371,37.01]
[1680465334655,206.76625156,20.38,20.369,0.06458482]
[1680465334850,60.56625156,20.38,20.369,0.06458482]
[1680465335859,146.2,20.379,20.369,0.06458482]
[1680465336158,60.56625156,20.38,20.369,0.06458482]
[1680465336556,36.79,20.378,20.369,0.06458482]
[1680465336863,182.99,20.378,20.369,0.06458482]
[1680465337561,100.0,20.373,20.369,0.06458482]
[1680465337753,100.0,20.373,20.364,36.92063625]
[1680465339055,100.0,20.373,20.358,45.16]
[1680465339255,36.68,20.368,20.343,100.0]
[1680465339455,182.88,20.368,20.345,49.0443]
[1680465339657,183.21,20.365,20.351,37.01]
[1680465339959,37.01,20.365,20.351,37.01]
[1680465340157,37.07440546,20.365,20.351,37.07285333]
[1680465340858,36.65,20.362,20.351,0.06285333]
[1680465341059,36.79,20.36,20.351,0.06285333]
[1680465342061,182.99,20.36,20.351,0.06285333]
[1680465344460,147.5525,20.363,20.351,36.80285333]
[1680465345457,330.7625,20.363,20.351,0.06285333]
[1680465350773,230.7625,20.363,20.351,0.06285333]
[1680465351576,36.65,20.36,20.351,0.06285333]
[1680465351973,37.01,20.362,20.351,0.06285333]
[1680465352271,24.42,20.361,20.351,0.06285333]
[1680465353278,147.5525,20.363,20.354,24.42]
[1680465354577,293.7525,20.363,20.354,24.42]
[1680465355076,24.3,20.361,20.351,0.06285333]
[1680465358179,24.3,20.358,20.351,0.06285333]
[1680465359882,24.3,20.362,20.351,24.40285333]
[1680465364784,100.0,20.363,20.355,24.42]
[1680465365493,100.0,20.363,20.351,0.06285333]
[1680465365787,24.42,20.36,20.351,0.06285333]
[1680465365985,170.62,20.36,20.351,0.06285333]
[1680465366588,24.42,20.356,20.351,0.06285333]
[1680465366787,24.42,20.356,20.346,0.06332438]
[1680465367184,146.2,20.357,20.346,0.06332438]
[1680465372297,36.65,20.358,20.346,0.06332438]
[1680465372298,146.2,20.353,20.346,0.06332438]
[1680465372697,36.65,20.351,20.346,0.06332438]
[1680465372897,36.65,20.351,20.341,0.06009047]
[1680465373195,36.65,20.351,20.339,0.06583661]
[1680465373398,146.2,20.35,20.339,0.06583661]
[1680465373593,193.8471,20.35,20.339,0.06583661]
[1680465374293,47.6471,20.35,20.339,0.06583661]
[1680465378300,182.85,20.348,20.339,0.06583661]
[1680465378991,0.0470992,20.339,20.334,81.6397]
[1680465380495,0.0470992,20.339,20.334,36.65]
[1680465380696,0.0470992,20.339,20.33,51.49151901]
[1680465380896,0.0470992,20.339,20.331,48.427]
[1680465381093,0.0470992,20.339,20.333,36.61]
[1680465384997,0.0470992,20.339,20.338,36.65]
[1680465387705,0.0470992,20.339,20.333,36.61]
[1680465388401,0.0470992,20.339,20.338,5.0]
[1680465389105,0.0470992,20.339,20.337,36.65]
[1680465391500,0.0470992,20.339,20.336,36.66]
[1680465394013,0.0470992,20.339,20.334,36.66]
[1680465396616,0.0470992,20.339,20.331,85.097]
[1680465400218,0.0470992,20.339,20.331,48.427]
[1680465403719,0.0470992,20.339,20.332,36.46]
[1680465403921,0.0470992,20.339,20.336,36.66]
[1680465404222,0.0470992,20.339,20.337,5.0]
[1680465404630,5.0,20.349,20.337,5.0]
[1680465404917,100.0,20.363,20.346,36.34]
[1680465405126,100.0,20.363,20.348,36.34]
[1680465405314,36.52,20.362,20.348,36.34]
[1680465405715,0.06384486,20.362,20.352,36.67]
[1680465415829,146.2,20.361,20.349,45.0249]
[1680465416127,36.31,20.36,20.349,45.0249]
[1680465417931,182.51,20.36,20.349,45.0249]
[1680465418631,182.51,20.36,20.348,0.06069275]
[1680465418825,146.2,20.358,20.348,0.06069275]
[1680465419729,146.2,20.356,20.348,0.06069275]
[1680465420730,146.2,20.352,20.348,0.06069275]
[1680465420936,146.2,20.352,20.343,0.06918075]
[1680465421334,182.87,20.352,20.343,0.06918075]
[1680465422135,36.58824051,20.357,20.343,0.06918075]
[1680465422136,36.67,20.349,20.343,0.06918075]
[1680465422335,36.67,20.349,20.339,5.06760589]
[1680465422531,36.67,20.349,20.339,0.06760589]
[1680465428940,0.06997921,20.351,20.339,36.73760589]
[1680465430341,0.06997921,20.351,20.342,36.67]
[1680465430537,0.06997921,20.351,20.343,44.894]
[1680465437149,0.06997921,20.351,20.345,24.43]
[1680465437349,0.06776836,20.355,20.345,24.43]
[1680465438449,0.06776836,20.355,20.348,24.24]
[1680465442049,24.49776836,20.355,20.344,24.24]
[1680465445859,170.69776836,20.355,20.344,24.24]
[1680465447050,24.49776836,20.355,20.344,24.24]
[1680465451358,24.31,20.354,20.343,44.9614119]
[1680465459066,24.33,20.35,20.343,44.9614119]
[1680465459268,24.43,20.347,20.343,44.9614119]
[1680465459565,24.43,20.347,20.343,44.894]
[1680465461565,24.4,20.35,20.343,44.894]
[1680465468869,24.4,20.347,20.338,0.06030959]
[1680465473775,170.6,20.347,20.338,0.06030959]
[1680465474475,24.33,20.342,20.338,0.06030959]
[1680465474675,24.33,20.342,20.333,0.06801219]
[1680465483985,24.46,20.343,20.333,0.06801219]
[1680465500201,39.34486849,20.343,20.333,0.06801219]
[1680465500795,24.46,20.34,20.333,0.06801219]
[1680465503109,24.44,20.337,20.326,24.26]
[1680465507612,24.46,20.334,20.324,59.97114678]
[1680465507811,9.72916812,20.333,20.324,59.97114678]
[1680465508012,24.46,20.334,20.324,59.97114678]
[1680465512118,24.26,20.336,20.325,24.26]
[1680465512318,9.72956233,20.335,20.325,24.26]
[1680465515722,9.72956233,20.335,20.325,24.25]
[1680465519836,24.48,20.336,20.325,24.25]
[1680465520132,9.72894377,20.335,20.325,24.25]
[1680465521033,9.72894377,20.335,20.329,24.48]
[1680465521239,46.2974075,20.339,20.329,24.48]
[1680465521429,9.72894991,20.338,20.329,24.48]
[1680465522331,9.72894991,20.337,20.329,24.48]
[1680465522531,9.72894991,20.336,20.329,24.48]
[1680465522731,9.72894991,20.335,20.329,24.48]
[1680465523033,0.0680075,20.339,20.329,24.48]
[1680465523232,9.79750363,20.339,20.329,24.48]
[1680465526028,9.79750363,20.339,20.331,24.45]
[1680465526229,0.0680075,20.339,20.335,24.25]
[1680465526426,0.06024832,20.344,20.335,24.25]
[1680465527729,0.06024832,20.344,20.338,24.48]
[1680465527935,9.73331348,20.344,20.338,24.48]
[1680465528233,9.73331348,20.343,20.338,24.48]
[1680465528430,48.95492574,20.348,20.338,24.48]
[1680465528631,9.73406793,20.347,20.338,24.48]
[1680465529536,9.73406793,20.346,20.338,24.48]
[1680465529734,9.73406793,20.345,20.338,24.48]
[1680465529935,9.73406793,20.344,20.338,24.48]
[1680465530130,9.79609367,20.348,20.338,24.48]
[1680465530434,9.73406793,20.347,20.338,24.48]
[1680465530635,9.73406793,20.346,20.338,24.48]
[1680465530935,9.73406793,20.345,20.338,24.48]
[1680465531134,9.79609367,20.348,20.338,24.48]
[1680465531434,9.73406793,20.347,20.338,24.48]
[1680465531629,9.79609367,20.348,20.338,24.48]
[1680465532030,9.79609367,20.348,20.341,24.48]
[1680465532228,0.06202574,20.348,20.341,24.48]
[1680465532927,9.79609367,20.348,20.341,24.48]
[1680465533133,9.73406793,20.347,20.341,24.48]
[1680465533338,0.06202574,20.348,20.344,24.45]
[1680465533537,0.06511637,20.353,20.344,24.45]
[1680465533735,0.06511637,20.353,20.347,24.48]
[1680465533939,9.73759372,20.354,20.347,24.48]
[1680465534540,9.73759372,20.353,20.35,24.25]
[1680465534735,0.0678416,20.357,20.35,24.25]
[1680465542739,24.5478416,20.357,20.346,24.48]
[1680465543042,9.73759372,20.356,20.346,24.48]
[1680465544637,24.41,20.354,20.344,0.0639601]
[1680465544841,9.73759372,20.353,20.344,0.0639601]
[1680465549538,24.41,20.351,20.344,0.0639601]
[1680465549843,9.73080387,20.35,20.344,0.0639601]
[1680465550042,9.73080387,20.35,20.34,0.06178944]
[1680465555646,24.41,20.348,20.34,0.06178944]
[1680465555842,9.73080387,20.347,20.34,0.06178944]
[1680465556937,24.39,20.346,20.34,0.06178944]
[1680465557141,9.73080387,20.345,20.336,0.0613107]
[1680465558946,9.73080387,20.345,20.337,24.24]
[1680465559147,9.73080387,20.347,20.337,24.24]
[1680465559347,9.72862045,20.346,20.337,24.24]
[1680465559645,24.27370697,20.348,20.337,24.24]
[1680465559646,9.72862045,20.345,20.337,24.24]
[1680465559841,24.21,20.346,20.336,0.0613107]
[1680465560049,9.72862045,20.345,20.336,0.0613107]
[1680465561949,9.72862045,20.345,20.338,24.24]
[1680465562141,48.792,20.347,20.338,24.24]
[1680465562343,9.7274982,20.346,20.338,24.24]
[1680465563246,9.7274982,20.345,20.338,24.24]
[1680465563547,0.06370697,20.348,20.338,24.24]
[1680465563747,9.79126544,20.348,20.338,24.24]
[1680465566052,9.79126544,20.348,20.341,24.43]
[1680465566247,9.72755847,20.347,20.341,24.43]
[1680465566453,9.72755847,20.346,20.341,24.43]
[1680465566753,0.06370697,20.348,20.341,24.43]
[1680465569355,0.06370697,20.348,20.338,24.36]
[1680465569548,9.79146468,20.348,20.338,24.36]
[1680465572056,9.79146468,20.348,20.337,47.567]
[1680465573459,24.39,20.344,20.337,47.567]
[1680465574356,24.39,20.344,20.336,0.0613107]
[1680465576456,24.46,20.344,20.336,0.0613107]
[1680465576654,9.72705958,20.343,20.336,0.0613107]
[1680465579764,24.42,20.341,20.336,0.0613107]
[1680465579964,24.42,20.341,20.331,0.06841195]
[1680465580459,9.72669858,20.34,20.331,0.06841195]
[1680465583865,24.42,20.341,20.331,0.06841195]
[1680465591773,9.72660873,20.34,20.331,0.06841195]
[1680465592374,9.72660873,20.34,20.334,24.32]
[1680465592572,0.06022243,20.343,20.337,24.45]
[1680465592764,9.79479345,20.347,20.337,24.45]
[1680465593273,9.72677074,20.346,20.337,24.45]
[1680465593578,9.72677074,20.345,20.34,24.32]
[1680465593773,0.06802271,20.347,20.34,24.32]
[1680465593974,9.79479345,20.347,20.34,24.32]
[1680465594166,0.06802271,20.347,20.34,24.32]
[1680465594469,0.06802271,20.347,20.337,5.0]
[1680465594470,0.06802271,20.347,20.343,24.46]
[1680465594774,0.06298362,20.352,20.343,24.46]
[1680465597676,0.06298362,20.352,20.349,24.46]
[1680465597875,48.7069,20.359,20.349,24.46]
[1680465597876,146.86415735,20.358,20.349,24.46]
[1680465598076,9.72677074,20.357,20.349,24.46]
[1680465598278,9.7934237,20.358,20.349,24.46]
[1680465598578,9.72677074,20.357,20.349,24.46]
[1680465598877,9.72677074,20.356,20.349,24.46]
[1680465599081,9.72677074,20.355,20.349,24.46]
[1680465599269,9.72677074,20.354,20.349,24.46]
[1680465599476,0.06665296,20.358,20.349,24.46]
[1680465600777,24.46,20.357,20.346,24.51059771]
[1680465600986,9.72677074,20.356,20.346,24.51059771]
[1680465601179,24.42,20.355,20.346,0.06059771]